Cogmind - Beta 10.2 @@@ ROGUE MODE // 2021.04.03 @ 16:52:01 Player: ILikeVoltron Result: Destroyed self with Grenade Launcher Performance ------------- Evolutions (3) 1500 Regions Visited (6) 1200 Robots Destroyed (41) 205 Value Destroyed (883) 883 Prototype IDs (5) 100 Alien Tech Used (0) 0 Bonus (0) 0 TOTAL SCORE: 3888 Bonus ------- None Cogmind --------- Core Integrity 0/700 Matter 177/300 Energy 95/100 System Corruption 0% Temperature Cool (0) Movement Core (50) Location -7/Lower Caves Parts ------- > --- POWER (1) -------- (None) > --- PROPULSION (4) --- (None) > --- UTILITY (5) ------ (None) > --- WEAPON (3) ------- Grenade Launcher > --- INVENTORY (4) ---- Sensor Array Improved Light Armor Plating Advanced Assault Cannon Peak State ------------ > --- POWER ------------ Improved Deuterium Engine > --- PROPULSION ------- Medium Treads Medium Treads Medium Treads Medium Treads > --- UTILITY ---------- Small Storage Unit Large Storage Unit Visual Processing Unit Advanced Sensor Array Advanced Signal Interpreter > --- WEAPON ----------- Advanced Assault Cannon Gauss Cannon Rocket Launcher > --- INVENTORY -------- Deuterium Engine Medium Treads Small Storage Unit High-capacity Storage Unit Large Matter Pod Sensor Array Advanced Sensor Array Improved Light Armor Plating Layered Light Armor Plating Assault Rifle Assault Cannon Plasma Flamer [Rating: 43] Favorites ----------- Power Improved Ion Engine Engine Improved Ion Engine Reactor Light Antimatter Reactor Propulsion Aluminum Leg Treads Medium Treads Leg Aluminum Leg Hover Unit Airjet Flight Unit Cesium-ion Thruster Utility Small Storage Unit Device Advanced Sensor Array Storage Small Storage Unit Processor Visual Processing Unit Weapon Autogun Energy Gun EM Pulse Gun Energy Cannon Ion Cannon Ballistic Gun Autogun Ballistic Cannon Gauss Cannon Launcher Rocket Launcher Special Weapon Plasma Flamer Build | -11 -10 -9 -9 -8 -7 -7 ------- Run | Scr Mat Mat Min Mat Fac Low Slots Evolved 6 | . . 2 . 2 2 . Power . | . . . . . . . Propulsion 2 | . . . . 1 1 . Utility 3 | . . 2 . 1 . . Weapon 1 | . . . . . 1 . Parts Attached 37 | 1 2 8 2 6 13 5 Power 5 | . . 1 . 1 2 1 Engine 4 | . . 1 . 1 2 . Core . | . . . . . . . Reactor 1 | . . . . . . 1 Propulsion 9 | . . 1 . 2 5 1 Treads 5 | . . . . . 4 1 Leg 2 | . . 1 . 1 . . Wheel . | . . . . . . . Hover 1 | . . . . . 1 . Flight 1 | . . . . 1 . . Utility 8 | 1 . 4 . 1 1 1 Device 3 | . . 2 . . . 1 Storage 2 | 1 . 1 . . . . Processor 3 | . . 1 . 1 1 . Hackware . | . . . . . . . Protection . | . . . . . . . Artifact . | . . . . . . . Weapon 15 | . 2 2 2 2 5 2 Energy Gun 1 | . . 1 . . . . Energy Cannon 1 | . . . . 1 . . Ballistic Gun 6 | . 1 1 . . 3 1 Ballistic Cannon 3 | . . . . 1 2 . Launcher 3 | . 1 . 1 . . 1 Special Weapon 1 | . . . 1 . . . Impact Weapon . | . . . . . . . Slashing Weapon . | . . . . . . . Piercing Weapon . | . . . . . . . Special Melee Weapon . | . . . . . . . Unidentified Prototypes . | . . . . . . . Parts Lost 16 | . . . 1 . 1 14 Power 2 | . . . . . . 2 Propulsion 6 | . . . 1 . . 5 Utility 3 | . . . . . . 3 Weapon 5 | . . . . . 1 4 Highest Loss Streak 10 | . . . 1 . 1 10 Average Slot Usage (%) 93 | . 100 99 99 95 96 65 Engine 9 | . 14 11 11 9 7 4 Treads 5 | . . . . . 11 16 Leg 16 | . 28 22 21 17 9 . Flight 2 | . . . . 8 4 . Device 6 | . . 11 11 9 7 4 Storage 19 | . 28 22 22 18 15 12 Processor 9 | . . 10 11 15 15 10 Energy Gun 1 | . . 7 7 . . . Ballistic Gun 8 | . 13 11 11 . 3 15 Ballistic Cannon 3 | . . . . 1 11 . Launcher 6 | . 13 3 2 9 5 . Naked Turns 51 | . . . . . . 51 Heaviest Build 49 | 17 18 34 35 40 49 40 Greatest Support 112 | 20 20 20 20 20 112 112 Greatest Overweight (x) 3 | . . 1 3 3 2 3 Average Overweight (x) . | . . . 1 1 1 . Largest Inventory Capacity 12 | 8 8 12 12 12 12 12 Average Capacity 10 | 6 8 11 12 12 12 10 Most Carried 12 | 8 8 12 12 12 12 12 Average Carried 10 | 6 7 10 11 11 11 8 Final Capacity 12 | 8 8 12 12 12 12 4 Final Carried 12 | 8 8 12 12 12 12 3 Class Distribution -------------------- 63% | Mutant 36% | Skirmisher Dominant Class ---------------- Mutant | -10/Materials Mutant | -9/Materials Mutant | -9/Mines Mutant | -8/Materials Skirmisher | -7/Factory Skirmisher | -7/Lower Caves Resources | -11 -10 -9 -9 -8 -7 -7 ----------- Run | Scr Mat Mat Min Mat Fac Low Matter Collected 1275 | 210 229 173 217 . 65 381 Remotely . | . . . . . . . Salvage Created 1112 | 88 403 229 80 . 65 247 Parts 72 | 3 27 17 9 . 3 13 Haulers Intercepted 1 | . 1 . . . . . Recyclers Shooed 2 | . 1 1 . . . . Parts Field Recycled . | . . . . . . . Retrieved Matter . | . . . . . . . Parts Self-Destructed 16 | . . . . . . 16 Prevented . | . . . . . . . Kills | -11 -10 -9 -9 -8 -7 -7 ------- Run | Scr Mat Mat Min Mat Fac Low Combat Hostiles Destroyed 24 | . 7 5 2 . 2 8 Guns 16 | . 2 5 2 . 1 6 Cannons 1 | . . . . . 1 . AOE 7 | . 5 . . . . 2 Classes Destroyed 11 | 2 7 1 . . 1 . Worker 5 | . 2 1 2 . . . Builder 2 | . 1 1 . . . . Tunneler 1 | 1 . . . . . . Hauler 1 | . 1 . . . . . Recycler 3 | 1 2 . . . . . Operator 3 | . 2 1 . . . . Watcher 2 | . 2 . . . . . Swarmer 13 | . 3 2 2 . . 6 Grunt 7 | . 4 1 . . . 2 Sentry 3 | . . 2 . . 1 . Hunter 1 | . . . . . 1 . Best Kill Streak 4 | 2 4 3 3 . 1 4 Combat Bots Only 4 | . 3 2 2 . 1 4 Max Kills in Single Turn 2 | 1 2 2 1 . 1 2 Gunslinging 1 | . . 1 . . . . Exploded 2 | . 1 . . . . 2 Melee . | . . . . . . . Uniques/NPCs Destroyed . | . . . . . . . Combat | -11 -10 -9 -9 -8 -7 -7 -------- Run | Scr Mat Mat Min Mat Fac Low Damage Taken 3066 | . 206 113 260 . 335 2152 Core 733 | . 4 8 19 . 31 671 Absorbed by Shields . | . . . . . . . Core Remaining (%) 97 | 100 98 . 93 100 . . Volleys Fired 122 | 5 49 24 14 . 9 21 Largest 3 | 2 2 2 2 . 3 3 Hottest 129 | 80 50 63 100 . 129 69 Shots Fired 225 | 10 60 46 23 . 27 59 Gun 192 | 10 49 42 20 . 14 57 Cannon 12 | . . . . . 12 . Launcher 20 | . 11 4 2 . 1 2 Special 1 | . . . 1 . . . Kinetic 167 | . 49 24 11 . 26 57 Thermal 1 | . . . 1 . . . Explosive 20 | . 11 4 2 . 1 2 Electromagnetic 37 | 10 . 18 9 . . . Robot Hit Streak 10 | 3 10 5 7 . 7 10 Robot Miss Streak 5 | 3 3 5 2 . 1 3 Penetration Max . | . . . . . . . Secondary Targets 4 | . . 1 . . . 3 Max Gunslinging Chain 1 | . . 1 . . . 1 Shots Hit Robots 138 | 6 31 26 11 . 20 44 Core Hits 66 | 2 25 14 5 . 4 16 Critical Hits 1 | . . . . . 1 . Critical Kills 1 | . . . . . 1 . Critical Parts Destroyed . | . . . . . . . Melee Attacks . | . . . . . . . Impact . | . . . . . . . Slashing . | . . . . . . . Piercing . | . . . . . . . Sneak Attacks . | . . . . . . . Combat Hostiles . | . . . . . . . Follow-up Attacks . | . . . . . . . Damage Inflicted 2949 | 135 1091 464 273 . 281 705 Guns 1512 | 85 346 329 119 . 95 538 Cannons 174 | . . . . . 174 . Explosions 1259 | 50 745 135 150 . 12 167 Melee . | . . . . . . . Ramming 4 | . . . 4 . . . Kinetic 1447 | . 346 210 84 . 269 538 Thermal 134 | 50 . 39 45 . . . Explosive 1125 | . 745 96 105 . 12 167 Electromagnetic 239 | 85 . 119 35 . . . Impact . | . . . . . . . Slashing . | . . . . . . . Piercing . | . . . . . . . Highest Corruption . | . . . . . . . Average Corruption . | . . . . . . . Corruption Purged . | . . . . . . . Overload Shots . | . . . . . . . Overflow Damage 72 | . 52 2 18 . . . Projectiles . | . . . . . . . Explosions 72 | . 52 2 18 . . . Melee . | . . . . . . . Knockbacks . | . . . . . . . Impact . | . . . . . . . Kinetic . | . . . . . . . Secondary . | . . . . . . . Self-Inflicted Damage 194 | . 34 . 110 . . 50 Shots 8 | . 2 . 4 . . 2 Rammed 1 | . . . 1 . . . Targets Rammed 1 | . . . 1 . . . Kicked . | . . . . . . . Crushed . | . . . . . . . Highest Temperature 180 | 90 5 11 56 . 180 85 Average Temperature 43 | 42 3 6 25 . 84 29 Received Heat Transfer 468 | . 51 27 30 . 18 342 Siege Activations . | . . . . . . . Robots Corrupted 1 | 1 . . . . . . Combat Hostiles . | . . . . . . . Parts Fried . | . . . . . . . Impact Corruptions . | . . . . . . . Robots Melted . | . . . . . . . Combat Hostiles . | . . . . . . . Parts Melted . | . . . . . . . Heat Transferred 100 | 50 . 50 . . . . Parts Sabotaged . | . . . . . . . Parts Stolen . | . . . . . . . Parts Stripped . | . . . . . . . Power Chain Reactions 3 | 1 . 1 1 . . . Missiles Intercepted . | . . . . . . . Alert | -11 -10 -9 -9 -8 -7 -7 ------- Run | Scr Mat Mat Min Mat Fac Low Peak Influence 291 | 10 243 291 238 10 65 . Initial 113 | . 6 59 113 10 4 . Average 75 | 8 72 173 162 10 24 . Maximum Alert Level 1 | . 1 1 1 . . . Low Security (%) 86 | 100 99 43 60 100 100 . Level 1 13 | . . 56 39 . . . Level 2 . | . . . . . . . Level 3 . | . . . . . . . Level 4 . | . . . . . . . Level 5 . | . . . . . . . High Security . | . . . . . . . Max Security . | . . . . . . . Squads Dispatched 1 | . . 1 . . . . Investigation . | . . . . . . . Extermination . | . . . . . . . Reinforcement 1 | . . 1 . . . . Assault . | . . . . . . . Garrison . | . . . . . . . Intercept . | . . . . . . . Construction Impeded . | . . . . . . . Haulers Reinforced . | . . . . . . . Stealth | -11 -10 -9 -9 -8 -7 -7 --------- Run | Scr Mat Mat Min Mat Fac Low Distress Signals 2 | . . 2 . . . . Communications Jammed . | . . . . . . . Distress Signals . | . . . . . . . Times Spotted 53 | . 13 11 7 . 2 20 Peak Tracking Total 8 | . 3 4 3 . 1 8 Tactical Retreats 7 | . . 1 1 . . 5 Traps | -11 -10 -9 -9 -8 -7 -7 ------- Run | Scr Mat Mat Min Mat Fac Low Traps Triggered 1 | . . . . . 1 . Indirectly . | . . . . . . . Trap Hack Attempts . | . . . . . . . Triggered . | . . . . . . . Disarmed . | . . . . . . . Reprogrammed . | . . . . . . . Reused . | . . . . . . . Traps Extracted . | . . . . . . . Installed 2 | . . . 1 . 1 . Triggered 1 | . . . . . . 1 Machines | -11 -10 -9 -9 -8 -7 -7 ---------- Run | Scr Mat Mat Min Mat Fac Low Machines Disabled 5 | . 3 . 2 . . . Max in Single Turn 2 | . 2 . 1 . . . Machines Sabotaged . | . . . . . . . Garrisons Compromised . | . . . . . . . Overloaded Fab Kills . | . . . . . . . Fab Network Shutdowns . | . . . . . . . Hacking | -11 -10 -9 -9 -8 -7 -7 --------- Run | Scr Mat Mat Min Mat Fac Low Machines Accessed 9 | . 5 2 1 . 1 . Terminals 6 | . 5 . 1 . . . Fabricators 1 | . . . . . 1 . Repair Stations 1 | . . 1 . . . . Recycling Units . | . . . . . . . Scanalyzers 1 | . . 1 . . . . Garrison Access . | . . . . . . . Total Hacks 21 | . 12 5 2 . 2 . Successful 12 | . 6 3 1 . 2 . Failed 9 | . 6 2 1 . . . Catastrophic 1 | . 1 . . . . . Database Lockouts . | . . . . . . . Manual 2 | . 2 . . . . . Terminals 14 | . 12 . 2 . . . Fabricators 2 | . . . . . 2 . Repair Stations 2 | . . 2 . . . . Recycling Units . | . . . . . . . Scanalyzers 3 | . . 3 . . . . Garrison Access . | . . . . . . . Terminal Hacks 7 | . 6 . 1 . . . Prototype ID Bank 3 | . 3 . . . . . Level Access Points 1 | . 1 . . . . . Terminal Index 1 | . 1 . . . . . Zone Layout 2 | . 1 . 1 . . . Fabricator Hacks 2 | . . . . . 2 . Load Schematic 1 | . . . . . 1 . Build 1 | . . . . . 1 . Repair Station Hacks 1 | . . 1 . . . . Scan Component 1 | . . 1 . . . . Recycling Unit Hacks . | . . . . . . . Scanalyzer 2 | . . 2 . . . . Insert Component 1 | . . 1 . . . . Analyze 1 | . . 1 . . . . Garrison Access Hacks . | . . . . . . . Unauthorized Hacks . | . . . . . . . Terminals . | . . . . . . . Fabricators . | . . . . . . . Repair Stations . | . . . . . . . Recycling Units . | . . . . . . . Scanalyzers . | . . . . . . . Garrison Access . | . . . . . . . Data Cores Recovered 2 | . 2 . . . . . Used . | . . . . . . . Hacking Detections 7 | . 3 2 1 . 1 . Full Trace Events 1 | . . 1 . . . . Feedback Events . | . . . . . . . Feedback Blocked . | . . . . . . . Robot Schematics Acquired . | . . . . . . . Robots Built . | . . . . . . . Matter . | . . . . . . . Time . | . . . . . . . Total Robot Build Rating . | . . . . . . . Part Schematics Acquired 1 | . . 1 . . . . Parts Built 1 | . . . . . 1 . Matter 102 | . . . . . 102 . Time 51 | . . . . . 51 . Total Part Build Rating 1 | . . . . . 1 . Parts Repaired . | . . . . . . . Time . | . . . . . . . Parts Recycled . | . . . . . . . Recycled Matter . | . . . . . . . Retrieved Matter . | . . . . . . . Retrieved Components . | . . . . . . . Parts Scanalyzed 1 | . . 1 . . . . Part Schematics Acquired 1 | . . 1 . . . . Parts Damaged . | . . . . . . . Bothacking | -11 -10 -9 -9 -8 -7 -7 ------------ Run | Scr Mat Mat Min Mat Fac Low Used RIF Installer . | . . . . . . . Robots Hacked . | . . . . . . . Non-combat . | . . . . . . . Combat . | . . . . . . . Robot Hacks Applied . | . . . . . . . Relay Couplers Released . | . . . . . . . Robots Rewired . | . . . . . . . Allies Hacked . | . . . . . . . Hacks Repelled . | . . . . . . . Allies | -11 -10 -9 -9 -8 -7 -7 -------- Run | Scr Mat Mat Min Mat Fac Low Total Allies 1 | . . . . . . 1 Largest Group 1 | . . . . . . 1 Highest-Rated Group 113 | . . . . . . 113 Highest-Rated Ally 113 | . . . . . . 113 Total Orders . | . . . . . . . Ally Attacks . | . . . . . . . Total Damage . | . . . . . . . Kills . | . . . . . . . Allies Corrupted . | . . . . . . . Allies Melted . | . . . . . . . Intel | -11 -10 -9 -9 -8 -7 -7 ------- Run | Scr Mat Mat Min Mat Fac Low Robot Analysis Total . | . . . . . . . Derelict Logs Recovered . | . . . . . . . Drone Launches . | . . . . . . . Drone Recoveries . | . . . . . . . Exploration | -11 -10 -9 -9 -8 -7 -7 ------------- Run | Scr Mat Mat Min Mat Fac Low Turns Passed 2869 | 57 654 298 410 278 818 354 Spaces Moved 1646 | 29 448 130 240 165 409 225 Core 102 | . . . . . . 102 Treads 258 | . . . . . 135 123 Legs 1286 | 29 448 130 240 165 274 . Wheels . | . . . . . . . Hover . | . . . . . . . Flight . | . . . . . . . Fastest Speed 50 | 120 120 120 150 150 150 50 Average Speed 141 | 120 120 146 150 152 172 113 Slowest Speed 210 | 120 120 150 210 210 180 200 Overloaded Moves . | . . . . . . . Propulsion Burnouts . | . . . . . . . Robots Hopped . | . . . . . . . Cave-ins Triggered . | . . . . . . . Exploration Rate (%) 31 | 3 77 15 52 20 13 40 Regions Visited 6 Branch Regions 2 Pre-discovered Areas . | . . . . . . . Known Exits Taken 3 | . 1 . . 1 1 . Unknown Exits Taken 3 | 1 . 1 1 . . . Scrap Searched 3 | . . . . . . 3 Spaces Dug . | . . . . . . . Terrain Destroyed 180 | 2 107 27 25 . 8 11 Melee . | . . . . . . . Projectile 1 | . . . . . 1 . AOE 179 | 2 107 27 25 . 7 11 Terrain Rammed . | . . . . . . . Walls Destroyed . | . . . . . . . Machines Disabled . | . . . . . . . Actions | -11 -10 -9 -9 -8 -7 -7 --------- Run | Scr Mat Mat Min Mat Fac Low Total 1991 | 40 506 188 269 191 505 292 Wait 141 | 4 . 25 2 18 53 39 Move 1640 | 28 447 129 239 164 408 225 Hop . | . . . . . . . Pick Up 17 | 2 3 1 4 . 7 . Fast Attach 20 | 1 1 1 1 4 9 3 Attach 4 | . . 1 . 1 . 2 Detach 3 | . 1 . 1 1 . . Swap 13 | . 1 6 1 1 4 . Drop 28 | . 4 1 5 2 14 2 Fire 122 | 5 49 24 14 . 9 21 Melee . | . . . . . . . Ram . | . . . . . . . Kick 1 | . . . 1 . . . Crush . | . . . . . . . Escape Stasis . | . . . . . . . Rewire . | . . . . . . . Trap 2 | . . . 1 . 1 . Miscellaneous . | . . . . . . . Route ------- -11/Scrapyard -10/Materials (discovered 5 exits: *Mat x3 / [*Min x2]) -9/Materials -9/Mines -8/Materials -7/Factory -7/Lower Caves History --------- Turn | Location | Event 7 | -11/Scrapyard | Discovered new exit (range 2) 58 | -11/Scrapyard | Entered Materials 221 | -10/Materials | Discovered new exit (range 8) 303 | -10/Materials | Build established: Mutant 351 | -10/Materials | Discovered new exit (range 16) 511 | -10/Materials | Discovered new exit (range 11) 562 | -10/Materials | Identified exit to Materials 712 | -10/Materials | Entered another Materials area 712 | -9/Materials | Evolved 2 slots: Utility x2 998 | -9/Materials | Discovered new exit (range 7) 1010 | -9/Materials | Entered Mines 1106 | -9/Mines | Found a hidden stash of uninstalled traps 1131 | -9/Mines | Assembled infested the area 1136 | -9/Mines | Assisted by a Guerilla fighting off Assembled 1144 | -9/Mines | Received a Rocket Launcher from a helpful Derelict 1296 | -9/Mines | A weapon hastily lodged in a ceiling crevice suddenly fell to the ground 1358 | -9/Mines | Discovered new exit (range 5) 1420 | -9/Mines | Entered Materials 1420 | -8/Materials | Evolved 2 slots: Propulsion x1, Utility x1 1662 | -8/Materials | Discovered new exit (range 4) 1697 | -8/Materials | Identified exit to Factory 1698 | -8/Materials | Entered Factory 1698 | -7/Factory | Evolved 2 slots: Propulsion x1, Weapon x1 2012 | -7/Factory | Build established: Skirmisher 2428 | -7/Factory | Discovered new exit (range 6) 2436 | -7/Factory | Identified exit to Lower Caves 2503 | -7/Factory | Fabricated Grenade Launcher (x1) 2516 | -7/Factory | Entered Lower Caves 2808 | -7/Lower Caves | Released all parts (3) 2824 | -7/Lower Caves | Core integrity fell below 50% 2838 | -7/Lower Caves | Lost 10 parts (1p4n2u3w) 2845 | -7/Lower Caves | Core integrity fell below 20% 2870 | -7/Lower Caves | Destroyed self with Grenade Launcher Last Messages --------------- 02758_ Imp. Deuterium Engine destroyed. 02765_ Autogun destroyed. 02780_ Searching scrap... 02780_ Found Hacking Suite. 02780_ Found 14 Matter. 02781_ Acquired 14 matter. 02790_ Adv. Sensor Array destroyed. 02807_ Med. Treads destroyed. 02808_ Released Sml. Storage Unit. 02808_ Released Lrg. Storage Unit. 02808_ Released Enh. Optical Array. A strange signal echoes through the caves. 02846_ Acquired KE Penetrator. 02847_ KE Penetrator destroyed. 02848_ Acquired Lgt. Antimatter Reactor. 02855_ Lgt. Antimatter Reactor destroyed. 02856_ S-27 Virus destroyed. 02866_ Dropped Grenade Launcher. 02867_ Acquired Grenade Launcher. 02870_ S-27 Virus destroyed. Map ----- +----------------------------------------------------+ | ?????????????????????????????????????????????????? | | ?????????????????????????????????????????????????? | | ?????????????????????????????????????????????????? | | ?????????????????????????????????????????????????? | | ?????????????????????????????????????????????????? | | ?????????????????????????????????????????????????? | | ??????????????????#################??????????????? | | ??????????????????# #??????????????? | | ??????????????????# ? #??????????????? | | ??????????????????# ### ##### #??????????????? | | ??????????????????# #"" "" ""# ###????????????? | | ???????????######?# T ###?####?????? | | ??????????## ### #" ### #?????? | | ###??????## [ # #?????? | | # ##?##### =%= + ## #####?? | | ### #### #* # ### #?? | | ### ## #"""" # ### #?? | | ### #"""" + ###?? ## #?# | | #?# #"""" "" # #????# ## #?# | | # ## #?# ## ##### ## #???## ## #?# | | # ## #?# ##### ## ### | | ### #?# =% ## | | " ## #######?# % ######## | | " ## ##?????## ##???# ## ### | | " ## #??????## #????? ### #?### | | # #???????## @ #?????#### ##???# | | ## ###????????# ###????## * #????## | | ?# ##??#####???## # ###### ! ##?????# | | ?# ##??## ####?## ### !!! ##??????? | | ?## ##??## #??##??# !] ##### | | ??## #???# #?????## | | ?### ##???# ##???## | | ?# #???# ##?## ## ##### | | ?# ##??# ### ### #??????? | | ?#### #### ## ##?#####??????? | | ????## ## ##?????????????? | | ?????## ### ##??????????????? | | ??????## ##?## ### #???????????????? | | ???????# ##???# ##?## ##???????????????? | | ??????# #???# #???####????????????????? | | ????# ## #?# #???????????????????????? | | ???# ##### #?# #???????????????????????? | | ???# ##????## ##?# ## #???????????????????????? | | ???###???????# #?# #?# #???????????????????????? | | ?????????????# #?# ??# #???????????????????????? | | ?????????????# #?##??# ???????????????????????? | | ?????????????? ?????# ???????????????????????? | | ?????????????? ?????## ??????????????????????? | | ?????????????? ??????# ??????????????????????? | | ?????????????? ??????? ?????????????????????? | +----------------------------------------------------+ Best States ------------- Heat Dissipation 34 Energy Generation 21 Energy Capacity 290 Matter Stores 300 Matter Capacity 300 Sight Range 22 Robot Scan Range 16 Terrain Scan Density 10 Evasion (%) 50 Recoil Reduction 4 Item Schematics ----------------- Grenade Launcher | -9/Materials | Scanalyzed Robot Schematics ------------------ None Fabricated ------------ Grenade Launcher | x1 | -7/Factory Alien Tech Used ----------------- None Achievements -------------- None Challenges ------------ None Game ------ Seed InsulationMasterExtractor Manual? 0 Play Time 00:33:48 Cumulative 36.6 hours Start 2021.04.03 @ 16:22:10 End 2021.04.03 @ 16:52:01 Sessions 1 Manual Loads 0 Difficulty Rogue Special Mode None Game No. 44 Rogue 40 Adventurer 0 Explorer 4 Win Type - Total 0 Types 0/0/0/0/0/0/0/0/0 Lore% 16 Gallery% 27 Achievement% 22 Wizard Run 0 Options --------- ASCII 0 Keyboard 1 Movement Arrows Keybinds 0 Fullscreen 2 Font 24/Terminus Map View 113x50 Tactical HUD 1 Map Filters NONE Filters NONE Steam 1 RUN: 7bb34b6b-e91e-472a-98f3-0eec4751a361